Cogmind - Beta 13 @@@ ROGUE MODE // 2024.04.06 @ 16:10:39 Player: sewer jenny Result: Destroyed by as-62485 with Assembled Rifle Performance ------------- Evolutions (0) 0 Regions Visited (4) 800 Robots Destroyed (12) 60 Value Destroyed (366) 366 Prototype IDs (23) 460 Alien Tech Used (0) 0 Bonus (350) 350 TOTAL SCORE: 2036 Bonus ------- Follower Combat Kills 50 Aligned with FarCom 300 Cogmind --------- Core Integrity 0/250 Matter 290/300 Energy 82/100 System Corruption 0% Temperature Cool (1) Movement Walking (120) Location -9/Mines Parts ------- > --- POWER (1) -------- (None) > --- PROPULSION (2) --- Aluminum Leg Improved Aluminum Leg > --- UTILITY (2) ------ Improved Heat Sink > --- WEAPON (2) ------- Longsword +1 > --- INVENTORY (5) ---- Flight Unit Terrain Scan Processor Light Assault Rifle Peak State ------------ > --- POWER ------------ Light Nuclear Core > --- PROPULSION ------- Compact Wheel > --- UTILITY ---------- Improved Heat Sink High-capacity Storage Unit > --- WEAPON ----------- Light Assault Rifle Longsword +1 > --- INVENTORY -------- Flight Unit Light Assault Rifle [Rating: 17] Favorites ----------- Power Ion Engine Engine Ion Engine Power Core Light Nuclear Core Propulsion Compact Wheel Treads Light Treads Leg Improved Aluminum Leg Wheel Compact Wheel Flight Unit Flight Unit Utility Small Storage Unit Device Improved Heat Sink Storage Small Storage Unit Weapon Light Assault Rifle Ballistic Gun Light Assault Rifle Launcher Grenade Launcher Slashing Weapon Longsword +1 Build | -11 -10 -10 -10 -9 ------- Run | Yrd Mat Min Exi Min Slots Evolved . | . . . . . Power . | . . . . . Propulsion . | . . . . . Utility . | . . . . . Weapon . | . . . . . Parts Attached 19 | 6 3 3 4 3 Power 3 | 1 . 1 1 . Engine 2 | 1 . 1 . . Core 1 | . . . 1 . Reactor . | . . . . . Propulsion 6 | 2 1 . . 3 Treads 2 | 2 . . . . Leg 2 | . . . . 2 Wheel 1 | . 1 . . . Hover . | . . . . . Flight 1 | . . . . 1 Utility 4 | 1 1 . 2 . Device 2 | . 1 . 1 . Storage 2 | 1 . . 1 . Processor . | . . . . . Hackware . | . . . . . Protection . | . . . . . Artifact . | . . . . . Weapon 6 | 2 1 2 1 . Energy Gun . | . . . . . Energy Cannon . | . . . . . Ballistic Gun 4 | 2 . 2 . . Ballistic Cannon . | . . . . . Launcher 1 | . 1 . . . Special Weapon . | . . . . . Impact Weapon . | . . . . . Slashing Weapon 1 | . . . 1 . Piercing Weapon . | . . . . . Special Melee Weapon . | . . . . . Unidentified Prototypes . | . . . . . Parts Lost 9 | . 3 4 . 2 Power 3 | . . 2 . 1 Propulsion 3 | . 1 1 . 1 Utility 1 | . 1 . . . Weapon 2 | . 1 1 . . Highest Loss Streak 3 | . 3 3 . 1 To Critical Strikes . | . . . . . Average Slot Usage (%) 68 | . 85 63 59 74 Engine 7 | . 14 13 . . Core 2 | . . . . 13 Treads 6 | . 26 4 . . Leg 1 | . . . . 7 Wheel 9 | . 1 14 14 4 Flight 1 | . . . . 8 Device 4 | . 3 . 2 14 Storage 12 | . 14 14 14 5 Ballistic Gun 15 | . 14 17 18 5 Launcher 1 | . 9 . . . Slashing Weapon 5 | . . . 9 14 Naked Turns . | . . . . . Heaviest Build 50 | 13 16 12 50 50 Greatest Support 40 | 40 40 16 16 23 Greatest Overweight (x) 16 | . . . 3 16 Average Overweight (x) . | . . . . 1 Largest Inventory Capacity 20 | 8 8 8 20 20 Average Capacity 9 | 7 8 8 10 10 Most Carried 5 | 3 4 3 5 3 Average Carried 2 | 1 2 1 3 2 Final Capacity 20 | 8 8 8 20 5 Final Carried 3 | 2 2 3 2 3 Class Distribution -------------------- 100% | Mutant Dominant Class ---------------- Mutant | -10/Materials Mutant | -10/Mines Mutant | -10/Exiles Mutant | -9/Mines Resources | -11 -10 -10 -10 -9 ----------- Run | Yrd Mat Min Exi Min Matter Collected 514 | 259 93 107 . 55 Remotely . | . . . . . Salvage Created 394 | . 217 130 . 47 Parts 19 | . 12 7 . . Haulers Intercepted . | . . . . . Recyclers Shooed . | . . . . . Parts Field Recycled . | . . . . . Retrieved Matter . | . . . . . Parts Self-Destructed . | . . . . . Prevented . | . . . . . Kills | -11 -10 -10 -10 -9 ------- Run | Yrd Mat Min Exi Min Combat Hostiles Destroyed 10 | . 5 4 . 1 Melee 1 | . . . . 1 Guns 5 | . 1 4 . . AOE 4 | . 4 . . . Classes Destroyed 5 | . 3 1 . 1 Recycler 1 | . 1 . . . Watcher 1 | . 1 . . . Swarmer 2 | . . 2 . . Grunt 7 | . 5 2 . . Duelist 1 | . . . . 1 Best Kill Streak 3 | . 3 2 . 1 Combat Bots Only 2 | . 2 2 . 1 Max Kills in Single Turn 2 | . 2 2 . 1 Gunslinging 1 | . . 1 . . Exploded 2 | . 2 . . . Melee 1 | . . . . 1 Uniques/NPCs Destroyed . | . . . . . Combat | -11 -10 -10 -10 -9 -------- Run | Yrd Mat Min Exi Min Hostile Shots Fired 139 | . 70 50 . 19 Missed 45 | . 23 17 . 5 Damage Taken 1206 | . 631 374 . 201 Core 253 | . 75 107 . 71 Absorbed by Shields . | . . . . . Core Remaining (%) 100 | 100 . . . . Volleys Fired 53 | . 27 26 . . Largest 2 | . 1 2 . . Hottest 40 | . 30 40 . . Shots Fired 63 | . 27 36 . . Gun 57 | . 21 36 . . Cannon . | . . . . . Launcher 6 | . 6 . . . Special . | . . . . . Kinetic 57 | . 21 36 . . Thermal . | . . . . . Explosive 6 | . 6 . . . Electromagnetic . | . . . . . Robot Hit Streak 7 | . 5 7 . . Robot Miss Streak 5 | . 4 5 . . Penetration Max . | . . . . . Secondary Targets 1 | . . 1 . . Max Gunslinging Chain 1 | . . 1 . . Shots Hit Robots 44 | . 17 23 . 4 Core Hits 28 | . 17 10 . 1 Critical Kills . | . . . . . Critical Parts Destroyed . | . . . . . Critical Strikes . | . . . . . Melee Attacks 6 | . . . . 6 Impact . | . . . . . Slashing 6 | . . . . 6 Piercing . | . . . . . Sneak Attacks . | . . . . . Combat Hostiles . | . . . . . Follow-up Attacks . | . . . . . Damage Inflicted 981 | . 623 228 . 130 Guns 383 | . 166 217 . . Cannons . | . . . . . Explosions 457 | . 457 . . . Melee 130 | . . . . 130 Ramming 11 | . . 11 . . Kinetic 383 | . 166 217 . . Thermal . | . . . . . Explosive 457 | . 457 . . . Electromagnetic . | . . . . . Impact . | . . . . . Slashing 130 | . . . . 130 Piercing . | . . . . . Highest Corruption . | . . . . . Average Corruption . | . . . . . Corruption Purged . | . . . . . Corruption Blocked . | . . . . . Overload Shots . | . . . . . Overflow Damage 9 | . 9 . . . Projectiles . | . . . . . Explosions 9 | . 9 . . . Melee . | . . . . . Knockbacks . | . . . . . Impact . | . . . . . Kinetic . | . . . . . Secondary . | . . . . . Self-Inflicted Damage 5 | . . 5 . . Shots . | . . . . . Rammed 4 | . . 4 . . Targets Rammed 4 | . . 4 . . Kicked . | . . . . . Crushed . | . . . . . Highest Temperature 25 | . 15 25 . 22 Average Temperature 9 | . 9 9 . 11 Received Heat Transfer 645 | . 372 153 . 120 Siege Activations . | . . . . . Robots Corrupted . | . . . . . Combat Hostiles . | . . . . . Parts Fried . | . . . . . Impact Corruptions . | . . . . . Robots Melted . | . . . . . Combat Hostiles . | . . . . . Parts Melted . | . . . . . Heat Transferred . | . . . . . Parts Sabotaged . | . . . . . Parts Stolen . | . . . . . Parts Stripped . | . . . . . Power Chain Reactions . | . . . . . Alert | -11 -10 -10 -10 -9 ------- Run | Yrd Mat Min Exi Min Peak Influence 189 | . 181 189 . 50 Initial 64 | . . 64 . . Average 64 | . 84 84 . 32 Maximum Alert Level . | . . . . . Low Security (%) 100 | 100 100 100 . 100 Level 1 . | . . . . . Level 2 . | . . . . . Level 3 . | . . . . . Level 4 . | . . . . . Level 5 . | . . . . . High Security . | . . . . . Max Security . | . . . . . Squads Dispatched 2 | . 2 . . . Investigation 2 | . 2 . . . Extermination . | . . . . . Reinforcement . | . . . . . Assault . | . . . . . Garrison . | . . . . . Intercept . | . . . . . Searches Triggered . | . . . . . Construction Impeded . | . . . . . Haulers Reinforced . | . . . . . Active Scanning Responses . | . . . . . Cargo Convoy Interrupts . | . . . . . Stealth | -11 -10 -10 -10 -9 --------- Run | Yrd Mat Min Exi Min Distress Signals 1 | . 1 . . . Communications Jammed . | . . . . . Distress Signals . | . . . . . Times Spotted 33 | . 16 8 . 9 Peak Tracking Total 7 | . 7 3 . 6 Tactical Retreats 2 | . . 2 . . Traps | -11 -10 -10 -10 -9 ------- Run | Yrd Mat Min Exi Min Traps Triggered . | . . . . . Indirectly . | . . . . . Trap Hack Attempts . | . . . . . Triggered . | . . . . . Disarmed . | . . . . . Reprogrammed . | . . . . . Reused . | . . . . . Traps Extracted . | . . . . . Installed . | . . . . . Triggered . | . . . . . Machines | -11 -10 -10 -10 -9 ---------- Run | Yrd Mat Min Exi Min Machines Disabled . | . . . . . Max in Single Turn . | . . . . . Machines Repaired . | . . . . . Machines Dismantled . | . . . . . Machines Sabotaged . | . . . . . Overloaded Fab Kills . | . . . . . Hacking | -11 -10 -10 -10 -9 --------- Run | Yrd Mat Min Exi Min Machines Accessed 5 | . 3 . 2 . Terminals 3 | . 3 . . . Fabricators . | . . . . . Repair Stations . | . . . . . Recycling Units . | . . . . . Scanalyzers . | . . . . . Garrison Access . | . . . . . Total Hacks 12 | . 10 . 2 . Successful 6 | . 4 . 2 . Failed 6 | . 6 . . . Catastrophic 3 | . 3 . . . Database Lockouts . | . . . . . Manual 12 | . 10 . 2 . Terminals 10 | . 10 . . . Fabricators . | . . . . . Repair Stations . | . . . . . Recycling Units . | . . . . . Scanalyzers . | . . . . . Garrison Access . | . . . . . Terminal Hacks 3 | . 1 . 2 . Record 1 | . . . 1 . Recall Investigation 1 | . 1 . . . Derelict Proto ID Bank 1 | . . . 1 . Fabricator Hacks . | . . . . . Repair Station Hacks . | . . . . . Recycling Unit Hacks . | . . . . . Scanalyzer . | . . . . . Garrison Access Hacks . | . . . . . Unauthorized Hacks 3 | . 3 . . . Terminals 3 | . 3 . . . Botnet 3 | . 3 . . . Fabricators . | . . . . . Repair Stations . | . . . . . Recycling Units . | . . . . . Scanalyzers . | . . . . . Garrison Access . | . . . . . Data Cores Recovered . | . . . . . Used . | . . . . . Hacking Detections 2 | . 2 . . . Full Trace Events 2 | . 2 . . . Feedback Events . | . . . . . Feedback Blocked . | . . . . . Robot Schematics Acquired . | . . . . . Robots Built . | . . . . . Authchips . | . . . . . Time . | . . . . . Total Robot Build Rating . | . . . . . Part Schematics Acquired . | . . . . . Parts Built . | . . . . . Authchips . | . . . . . Time . | . . . . . Total Part Build Rating . | . . . . . Parts Repaired . | . . . . . Time . | . . . . . Parts Recycled . | . . . . . Recycled Matter . | . . . . . Retrieved Matter . | . . . . . Retrieved Components . | . . . . . Parts Scanalyzed . | . . . . . Part Schematics Acquired . | . . . . . Parts Damaged . | . . . . . Bothacking | -11 -10 -10 -10 -9 ------------ Run | Yrd Mat Min Exi Min Used RIF Installer . | . . . . . Robots Hacked . | . . . . . Non-combat . | . . . . . Combat . | . . . . . Robot Hacks Applied . | . . . . . Relay Couplers Released . | . . . . . Fabnet Peak Effective % . | . . . . . Robots Rewired . | . . . . . Allies Hacked . | . . . . . Hacks Repelled . | . . . . . Allies | -11 -10 -10 -10 -9 -------- Run | Yrd Mat Min Exi Min Total Allies 3 | . . . . 3 Largest Group 3 | . . . . 3 Highest-Rated Group 40 | . . . . 40 Highest-Rated Ally 16 | . . . . 16 Total Orders . | . . . . . Ally Attacks 17 | . . . . 17 Total Damage 177 | . . . . 177 Kills 2 | . . . . 2 Allies Corrupted . | . . . . . Allies Melted . | . . . . . Intel | -11 -10 -10 -10 -9 ------- Run | Yrd Mat Min Exi Min Robot Analysis Total . | . . . . . Derelict Logs Recovered 3 | . . 2 . 1 Drone Launches . | . . . . . Drone Recoveries . | . . . . . Exploration | -11 -10 -10 -10 -9 ------------- Run | Yrd Mat Min Exi Min Turns Passed 1701 | 112 294 592 383 320 Spaces Moved 1288 | 64 147 507 358 212 Core 8 | 7 . . . 1 Treads 175 | 57 118 . . . Legs 128 | . . . . 128 Wheels 962 | . 29 507 358 68 Hover . | . . . . . Flight 15 | . . . . 15 Fastest Speed 50 | 50 100 100 100 120 Average Speed 115 | 147 148 100 105 137 Slowest Speed 850 | 160 160 100 145 850 Overloaded Moves . | . . . . . Propulsion Burnouts . | . . . . . Robots Hopped . | . . . . . Cave-ins Triggered . | . . . . . Exploration Rate (%) 50 | 4 38 88 71 49 Regions Visited 4 Branch Regions 3 Pre-discovered Areas 3 | . . 2 1 . Known Exits Taken . | . . . . . Unknown Exits Taken 4 | 1 1 1 1 . Scrap Searched 4 | . . 1 . 3 Spaces Dug 1 | . . . . 1 Terrain Destroyed 49 | . 48 . . 1 Melee 1 | . . . . 1 Projectile . | . . . . . AOE 48 | . 48 . . . Terrain Rammed . | . . . . . Walls Destroyed . | . . . . . Machines Disabled . | . . . . . Actions | -11 -10 -10 -10 -9 --------- Run | Yrd Mat Min Exi Min Total 1436 | 81 195 561 364 235 Wait 48 | 4 17 18 . 9 Move 1284 | 63 146 506 357 212 Hop . | . . . . . Pick Up 19 | 8 2 4 2 3 Fast Attach . | . . . . . Attach 15 | 6 2 3 2 2 Detach . | . . . . . Swap 4 | . 1 . 2 1 Drop 3 | . . . 1 2 Fire 53 | . 27 26 . . Melee 6 | . . . . 6 Ram 4 | . . 4 . . Kick . | . . . . . Crush . | . . . . . Escape Stasis . | . . . . . Rewire . | . . . . . Trap . | . . . . . Miscellaneous . | . . . . . Route ------- -11/Scrapyard -10/Materials (discovered 2 exits: [*Mat] / [*Min]) -10/Mines (discovered 3 exits: [*Mat x2] / *Exi) -10/Exiles -9/Mines (discovered 1 exit: [*Mat]) History --------- Turn | Location | Event 6 | -11/Scrapyard | Discovered new exit (range 13) 113 | -11/Scrapyard | Entered Materials 277 | -10/Materials | Discovered new exit (range 8) 314 | -10/Materials | Build established: Mutant 394 | -10/Materials | Discovered new exit (range 12) 405 | -10/Materials | Lost 3 parts (1n1u1w) 407 | -10/Materials | Entered Mines 422 | -10/Mines | Met a Derelict bent on vengeance 591 | -10/Mines | Core integrity fell below 50% 609 | -10/Mines | Lost 3 parts (1p1n1w) 869 | -10/Mines | Discovered new exit (range 13) 983 | -10/Mines | Discovered new exit (range 6) 992 | -10/Mines | Learned location of Storage (-9) 995 | -10/Mines | Deemed a non-threat by the Exiles lab entrance 995 | -10/Mines | Discovered new exit (range 5) 999 | -10/Mines | Entered Exiles 1025 | -10/Exiles | Met 8R-AWN 1043 | -10/Exiles | Met EX-HEX 1078 | -10/Exiles | Met EX-BIN 1089 | -10/Exiles | Aligned with FarCom system 1090 | -10/Exiles | Given EX-Vault access code 1114 | -10/Exiles | Opened EX-Vault 1118 | -10/Exiles | Found Prototype Slashing Weapon 1128 | -10/Exiles | Identified Longsword +1 1161 | -10/Exiles | Warned to stay clear of 0b10 Research branches 1190 | -10/Exiles | Met EX-DEC 1242 | -10/Exiles | Learned location of Zion (-6) 1336 | -10/Exiles | Discovered new exit (range 14) 1382 | -10/Exiles | Left Exiles lab with Longsword +1 1382 | -10/Exiles | Entered Mines 1387 | -9/Mines | Assisted by bots powering up and referring to "LRC-V3" 1525 | -9/Mines | Discovered new exit (range 15) 1579 | -9/Mines | Received a Rocket Launcher from a helpful Derelict 1660 | -9/Mines | Assembled infested the area 1665 | -9/Mines | Assisted by a Guerilla fighting off Assembled 1691 | -9/Mines | Core integrity fell below 20% 1702 | -9/Mines | Destroyed by as-62485 with Assembled Rifle Last Messages --------------- Found Terrain Scan Processor. Found 32 Matter. Acquired 10 matter. T-07 Excavator is excavating. Acquired Aluminum Leg. Acquired Terrain Scan Processor. T-07 Excavator is excavating. Acquired derelict log, extracted data. Data stored: Factory entrances (x1). ALERT: Infestation in the mines, dispatching Demolisher response squad. A derelict emerges from the shadows: "You need to get out of here! I've been tracking a group of Assembled to figure out where they're coming from, and they're closing on this area, come on!" Lgt. Nuclear Core destroyed. Critical hit (Burn: +80). Mercenary 2a destroyed. as-62159 destroyed. Map ----- +----------------------------------------------------+ | "" #?####### #????????????????????????????? | | "" #?# #????????????????????????????? | | ""% #?# ##### #????????????????????????????? | | %[% #?# #???#######????????????????????????????? | | !######## ##?????????????????????????????????????? | | #?????????????????????????????????????? | | [######### #?????????????????????????????????????? | | !#???????# #???????###???????????????????????????? | | #???????# #?????## #???????????????????????????? | | #???????# ####### #???????????????????????????? | | #???????# #???????????????????????????? | | ##??????######## ##??????????????????? #???????? | | #?????????????####???????????????????? ##?????? | | #????????????????????????????????????? ##????? | | !#????????????????????????????????????? ##???? | | %#????????????????????????????????????? #???? | | ##??????????####?????????????????????? ##??? | | ####?????### ####??????????????????# ##?? | | ##???## ##????????????????# #?? | | #???# ##??????????????? #?? | | ##??# #??????#####???? ##? | | ##### ##????## #???? ## | | # #### ##?### #???? # | | # #?## ### #????# ?? | | ## ##?# #????## #???? | | ?## #### @a a###### #????? | | ??## < #?# g### a a ## #?????? | | ???# #?# #?## a %= ## ##?????? | | ???## ## #?# #??# =% ###?????????? | | ????###### ##?# #?# ### ##???????????? | | ?????????# #??# #?# ###?####????????????? | | ?????????## ##??# #?## ##???????????????????? | | ??????????# #???# #??## ##????????????????????? | | ??????????# #???# #???####?????????????????????? | | ??????????# #???# #????????????????????????????? | | ??????????# #???# #????????????????????????????? | | ????????### #???# ####?????????????????????????? | | ?????#### #???# ##????????????????????????? | | ?????# ##??# d ##???????????????????????? | | ?????#X #?## ###### #?????????????? | | ?????" # ###] #?????????????? | | ?????" ## ?????????????? | | ?????# ??# ### #### ?????????????? | | ?????#??# #?# ##???? ??????????????? | | ???????# ###?## ##???????? ???????????????? | | ?????# ##????# ##?????????????????????????? | | ???? #?????## ##??????????????????????????? | | ?? #??????#% #???????????????????????????? | | ? ##??????# ]#???????????????????????????? | | ? #????????# #???????????????????????????? | +----------------------------------------------------+ Best States ------------- Heat Dissipation 39 Energy Generation 14 Energy Capacity 250 Matter Stores 300 Matter Capacity 300 Sight Range 16 Terrain Scan Density 10 Evasion (%) 55 Recoil Reduction 2 Item Schematics ----------------- None Robot Schematics ------------------ None Fabricated ------------ Nothing Alien Tech Used ----------------- None Achievements -------------- None Challenges ------------ None Game ------ Seed TransmissionFusionMultirail Manual? 0 Play Time 00:17:17 Cumulative 7.5 hours Start 2024.04.06 @ 15:56:25 End 2024.04.06 @ 16:10:39 Sessions 1 Manual Loads 0 Difficulty Rogue Special Mode None Game No. 17 Rogue 16 Adventurer 1 Explorer 0 Win Type - Total 0 Types 0/0/0/0/0/0/0/0/0 Lore% 4 Gallery% 16 Achievement% 14 Wizard Run 0 Options --------- Layout 1 ASCII 0 Keyboard 0 Movement Mouse Keybinds 0 Fullscreen 2 Font 24/Smallcaps Map View 50x35 Zoom Use 0% Tactical HUD 0 Map Filters NONE Filters NONE Steam 1 RUN: 765582c9-bb02-41b6-aa4a-de9aaf7da356